bitfinex-derivatives/quotes_BTCF0:USTF0_20241210
["timestamp","ask_amount","ask_price","bid_price","bid_amount"]
[1733832040699,0.01608865,97790.0,97789.0,0.41337006]
[1733832040894,0.01608865,97790.0,97789.0,0.42370244]
[1733832045794,0.01608865,97790.0,97789.0,0.7290136]
[1733832045996,0.01408865,97790.0,97789.0,0.7290136]
[1733832046394,0.00508865,97790.0,97789.0,0.7290136]
[1733832046703,0.02059037,97807.0,97789.0,0.69576908]
[1733832046899,0.02059037,97807.0,97805.0,0.051099]
[1733832047096,0.02059037,97807.0,97805.0,0.09588647]
[1733832047394,0.02059037,97807.0,97805.0,0.27851053]
[1733832047603,0.02059037,97807.0,97805.0,0.27991359]
[1733832047798,0.02059037,97807.0,97805.0,0.23527216]
[1733832048203,0.02059037,97807.0,97806.0,0.051098]
[1733832048690,0.02059037,97807.0,97806.0,0.09581977]
[1733832048897,0.02059037,97807.0,97806.0,0.09581999]
[1733832049207,0.02059037,97807.0,97806.0,0.05256106]
[1733832049401,0.02059037,97807.0,97806.0,0.09728303]
[1733832049593,0.02059037,97807.0,97806.0,0.27982187]
[1733832049795,0.02759037,97807.0,97806.0,0.09728303]
[1733832050709,0.007,97807.0,97806.0,0.09728303]
[1733832051008,0.011,97807.0,97806.0,0.09728303]
[1733832051309,0.011,97807.0,97806.0,0.05256106]
[1733832053901,0.062098,97807.0,97806.0,0.05256106]
[1733832054109,0.062098,97807.0,97806.0,0.00146306]
[1733832054313,0.011,97807.0,97789.0,0.18246359]
[1733832054603,0.051106,97791.0,97790.0,0.0447279]
[1733832055301,0.051106,97791.0,97790.0,0.0958339]
[1733832055912,0.051106,97791.0,97790.0,0.0968339]
[1733832056498,0.051106,97791.0,97790.0,0.0978339]
[1733832058405,0.051106,97791.0,97790.0,0.0968339]
[1733832058710,0.051106,97791.0,97790.0,0.0978339]
[1733832058905,0.051106,97791.0,97790.0,0.0968339]
[1733832060613,0.051106,97791.0,97790.0,0.0457279]
[1733832062105,0.051106,97791.0,97790.0,0.0447279]
[1733832062307,0.051106,97791.0,97790.0,0.0457279]
[1733832062699,0.051106,97791.0,97790.0,0.0447279]
[1733832062905,0.06111102,97791.0,97790.0,0.0457279]
[1733832066113,0.08169898,97791.0,97790.0,0.0457279]
[1733832068315,0.07169396,97791.0,97790.0,0.22819149]
[1733832068515,0.051104,97796.0,97795.0,0.051103]
[1733832068734,0.051104,97796.0,97795.0,0.0958309]
[1733832068916,0.051104,97796.0,97795.0,0.0958909]
[1733832069822,0.053104,97796.0,97795.0,0.0958909]
[1733832070315,0.09162084,97804.0,97795.0,0.0958909]
[1733832070525,0.00056001,97808.0,97807.0,0.051098]
[1733832070708,9.556e-05,97809.0,97808.0,0.051097]
[1733832071217,9.556e-05,97809.0,97808.0,0.051157]
[1733832071410,9.556e-05,97809.0,97808.0,0.09588039]
[1733832072521,0.00409556,97809.0,97808.0,0.09588039]
[1733832072718,0.01109556,97809.0,97808.0,0.09588039]
[1733832077528,0.01109556,97809.0,97808.0,0.33922183]
[1733832079724,0.01109556,97809.0,97808.0,0.051157]
[1733832079725,0.06219256,97809.0,97808.0,0.051157]
[1733832082733,0.06219256,97809.0,97808.0,0.04477934]
[1733832084826,0.07220223,97809.0,97808.0,6e-05]
[1733832085528,0.07220223,97809.0,97808.0,0.04478301]
[1733832085719,0.07220223,97809.0,97808.0,6e-05]
[1733832086426,0.43300223,97809.0,97808.0,6e-05]
[1733832086930,0.07220223,97809.0,97808.0,0.04478403]
[1733832088426,0.07220223,97809.0,97808.0,6e-05]
[1733832088427,0.06219256,97809.0,97808.0,6e-05]
[1733832088622,0.06219256,97809.0,97808.0,0.051157]
[1733832088823,0.01109556,97809.0,97808.0,0.09587898]
[1733832089835,0.06219256,97809.0,97808.0,0.09587898]
[1733832090229,0.06219256,97809.0,97808.0,0.051157]
[1733832090427,0.01109556,97809.0,97808.0,0.051157]
[1733832090625,0.01109556,97809.0,97808.0,0.09587595]
[1733832091236,0.06219256,97809.0,97808.0,0.09587595]
[1733832093133,0.01109556,97809.0,97808.0,0.09587595]
[1733832093628,0.01109556,97809.0,97808.0,0.33919402]
[1733832094032,0.06219256,97809.0,97808.0,0.33919402]
[1733832094233,0.01109556,97809.0,97808.0,0.09587595]
[1733832094833,0.01109556,97809.0,97808.0,0.051157]
[1733832096728,0.01109556,97809.0,97808.0,0.3556056]
[1733832096932,0.01109556,97809.0,97808.0,0.62810596]
[1733832097838,0.01109556,97809.0,97808.0,0.32367621]
[1733832098542,0.0318,97818.0,97817.0,0.051092]
[1733832098834,0.066,97826.0,97821.0,0.05109]
[1733832098835,0.02021936,97822.0,97821.0,0.05109]
[1733832099137,0.02021936,97822.0,97821.0,0.05115]
[1733832099530,0.02021936,97822.0,97821.0,0.05124556]
[1733832099931,0.00012897,97824.0,97821.0,0.00015556]
[1733832100132,0.00012897,97824.0,97823.0,0.411889]
[1733832100437,0.00012897,97824.0,97823.0,0.411949]
[1733832101244,0.00912897,97824.0,97823.0,0.411949]
[1733832101741,0.00412897,97824.0,97823.0,0.411949]
[1733832102442,0.00612897,97824.0,97823.0,0.65567303]
[1733832103932,0.0260801,97824.0,97823.0,0.65567303]
[1733832105231,0.0260801,97824.0,97823.0,0.411949]
[1733832105438,0.0260801,97824.0,97823.0,0.42203618]
[1733832105633,0.0260801,97824.0,97823.0,0.66570194]
[1733832107642,0.0260801,97824.0,97823.0,0.42203618]
[1733832107829,0.0260801,97824.0,97823.0,0.46675023]
[1733832108938,0.0771691,97824.0,97823.0,0.46675023]
[1733832109238,0.0260801,97824.0,97823.0,0.46675023]
[1733832112641,0.00612897,97824.0,97823.0,0.46675023]
[1733832113835,0.00612897,97824.0,97823.0,0.42203618]
[1733832116936,0.00612897,97824.0,97823.0,0.46674782]
[1733832118644,0.00612897,97824.0,97823.0,0.77142898]
[1733832119034,0.00612897,97824.0,97823.0,0.73974885]
[1733832119441,0.0656,97838.0,97837.0,0.051082]
[1733832119646,0.0656,97838.0,97837.0,0.09579364]
[1733832119647,0.0333,97838.0,97837.0,0.09579364]
[1733832119838,0.0333,97838.0,97837.0,0.09585364]
[1733832120439,0.0333,97838.0,97837.0,0.33930547]
[1733832120643,0.0333,97838.0,97837.0,0.33932629]
[1733832120943,0.0333,97838.0,97837.0,0.09585364]
[1733832120944,0.0383,97838.0,97837.0,0.09585364]
[1733832121146,0.0473,97838.0,97837.0,0.09685364]
[1733832121650,0.065081,97838.0,97837.0,0.09685364]
[1733832121833,0.0445,97838.0,97837.0,0.09685364]
[1733832122039,0.0445,97838.0,97837.0,0.052142]
[1733832122649,0.06505983,97838.0,97837.0,0.052142]
[1733832123941,0.0445,97838.0,97837.0,0.06259105]
[1733832132248,0.095581,97838.0,97837.0,0.06259105]
[1733832133150,0.095581,97838.0,97837.0,0.1072967]
[1733832133542,0.095581,97838.0,97837.0,0.06259105]
[1733832134252,0.095581,97838.0,97837.0,0.1072967]
[1733832134448,0.0445,97838.0,97837.0,0.1072967]
[1733832134755,0.0445,97838.0,97837.0,0.06259105]
[1733832135844,0.014,97838.0,97837.0,0.06259105]
[1733832136260,0.014,97838.0,97837.0,0.335082]
[1733832137549,0.005,97838.0,97837.0,0.334082]
[1733832137853,0.005,97838.0,97837.0,0.336082]
[1733832138046,0.005,97838.0,97837.0,0.33606744]
[1733832138248,0.00010327,97839.0,97837.0,0.33606744]
[1733832138447,0.00010327,97839.0,97838.0,0.35445739]
[1733832138651,0.00010327,97839.0,97838.0,0.35451739]
[1733832140557,0.00010327,97839.0,97838.0,0.71972157]
[1733832140756,0.00010327,97839.0,97838.0,0.72172157]
[1733832141153,0.03,97849.0,97838.0,0.35651739]
[1733832141349,0.03,97849.0,97848.0,0.411876]
[1733832141549,0.03,97849.0,97848.0,0.411936]
[1733832141958,0.3939,97860.0,97859.0,0.05107]
[1733832142155,0.39401785,97860.0,97859.0,0.23343899]
[1733832142458,0.4141001,97860.0,97859.0,0.23349899]
[1733832143255,0.4141001,97860.0,97859.0,0.05113]
[1733832143450,0.4141001,97860.0,97859.0,0.23349899]
[1733832144455,0.4181001,97860.0,97859.0,0.23349899]
[1733832144761,0.4251001,97860.0,97859.0,0.23449899]
[1733832146563,0.4251001,97860.0,97859.0,0.05213]
[1733832149950,0.4251001,97860.0,97859.0,0.06239162]
[1733832151763,0.4251001,97860.0,97859.0,0.05213]
[1733832151959,0.4761701,97860.0,97859.0,0.05213]
[1733832152268,0.4761701,97860.0,97859.0,0.00106]
[1733832152564,0.4761701,97860.0,97859.0,0.18340212]
[1733832152763,0.4761701,97860.0,97859.0,0.00106]
[1733832152954,0.4761701,97860.0,97856.0,0.13350763]
[1733832153154,0.051075,97850.0,97849.0,0.243154]
[1733832153353,0.051078,97844.0,97843.0,0.30397648]
[1733832153558,0.14281089,97844.0,97843.0,0.19898493]
[1733832153760,0.14281089,97844.0,97843.0,0.15427648]
[1733832153761,0.051198,97844.0,97843.0,0.15427648]
[1733832154268,0.051083,97834.0,97833.0,0.051084]
[1733832154455,0.051083,97834.0,97833.0,0.09579569]
[1733832154656,0.051203,97834.0,97833.0,0.09579569]
[1733832155365,0.051203,97834.0,97833.0,0.04471169]
[1733832155671,0.051203,97834.0,97833.0,0.04771169]
[1733832155972,0.17352922,97834.0,97833.0,0.003]
[1733832156159,0.00012,97834.0,97821.0,9.556e-05]
[1733832156361,0.05109,97822.0,97821.0,9.556e-05]
[1733832156559,0.05121,97822.0,97821.0,0.04481323]
[1733832157667,0.05121,97822.0,97821.0,9.556e-05]
[1733832158661,0.00012,97822.0,97821.0,0.09590271]
[1733832159454,0.00012,97822.0,97821.0,0.10620914]
[1733832161060,0.00012,97822.0,97821.0,0.10920914]
[1733832162359,0.00012,97822.0,97821.0,0.11120914]
[1733832163069,0.00012,97822.0,97821.0,0.10090271]
[1733832163667,0.05121,97822.0,97821.0,0.04981271]
[1733832164170,0.05121,97822.0,97821.0,0.00509556]
[1733832164662,0.05121,97822.0,97821.0,0.00609556]
[1733832165269,0.05121,97822.0,97821.0,0.00509556]
[1733832166371,0.05121,97822.0,97821.0,0.00309556]
[1733832166763,0.05121,97822.0,97821.0,0.00209556]
[1733832167167,0.05121,97822.0,97821.0,0.05318556]
[1733832167364,0.05121,97822.0,97821.0,0.09690308]
[1733832168067,0.00012,97822.0,97821.0,0.09690308]
[1733832168269,0.00012,97822.0,97821.0,0.05218556]
[1733832168475,0.00012,97822.0,97821.0,0.09689838]
[1733832168772,0.05108,97842.0,97841.0,0.051079]
[1733832168976,0.07191591,97842.0,97841.0,0.051079]
[1733832169170,0.07191591,97842.0,97841.0,0.09584624]
[1733832169671,0.07191591,97842.0,97841.0,0.051139]
[1733832170365,0.07991591,97842.0,97841.0,0.052139]
[1733832170869,0.08391591,97842.0,97841.0,0.052139]
[1733832171571,0.07791591,97842.0,97841.0,0.051139]
[1733832172364,0.07391591,97842.0,97841.0,0.051139]
[1733832172567,0.07491591,97842.0,97841.0,0.051139]
[1733832174577,0.07491591,97842.0,97841.0,6e-05]
[1733832175676,0.43571591,97842.0,97841.0,6e-05]
[1733832176876,1.52571591,97842.0,97841.0,6e-05]
[1733832177073,0.43571591,97842.0,97841.0,6e-05]
[1733832178479,0.051089,97823.0,97821.0,0.05118556]
[1733832178681,0.051089,97823.0,97822.0,0.07561398]
[1733832178988,0.051209,97823.0,97822.0,0.07561398]
[1733832179180,0.051209,97823.0,97822.0,0.0309]
[1733832179880,0.051209,97823.0,97822.0,0.0786144]
[1733832180086,0.052209,97823.0,97822.0,0.05471767]
[1733832180278,0.052209,97823.0,97822.0,0.01]
[1733832180981,0.051209,97823.0,97822.0,0.003]
[1733832181479,0.06154213,97823.0,97822.0,0.003]
[1733832181981,0.06254213,97823.0,97822.0,0.003]
[1733832182173,0.05109,97822.0,97821.0,9.556e-05]
[1733832182481,0.05121,97822.0,97821.0,9.556e-05]
[1733832182980,0.17351245,97822.0,97821.0,9.556e-05]
[1733832183178,0.17355992,97822.0,97821.0,9.556e-05]
[1733832183580,0.17354202,97822.0,97821.0,9.556e-05]
[1733832183779,0.05121,97822.0,97821.0,9.556e-05]
[1733832183984,0.17354157,97822.0,97821.0,9.556e-05]
[1733832184192,0.05121,97822.0,97821.0,9.556e-05]
[1733832184486,0.17352511,97822.0,97821.0,9.556e-05]
[1733832184884,0.05121,97822.0,97821.0,9.556e-05]
[1733832185084,0.05221,97822.0,97821.0,9.556e-05]
[1733832185488,0.05321,97822.0,97821.0,9.556e-05]
[1733832186185,0.14492619,97822.0,97821.0,0.05118556]
[1733832186383,0.14392619,97822.0,97821.0,0.05118556]
[1733832186590,0.05221,97822.0,97821.0,0.05118556]
[1733832187292,0.05121,97822.0,97821.0,0.05118556]
[1733832187481,0.05121,97822.0,97821.0,0.09590282]
[1733832187881,0.05121,97822.0,97821.0,0.09990282]
[1733832188492,0.05121,97822.0,97821.0,0.05718556]
[1733832188900,0.00012,97822.0,97821.0,0.41798556]
[1733832189103,0.00012,97822.0,97821.0,0.46270252]
[1733832190105,0.00012,97822.0,97821.0,0.46070252]
[1733832190305,0.00012,97822.0,97821.0,0.46270252]
[1733832190598,0.00012,97822.0,97821.0,0.45870252]
[1733832190804,0.00012,97822.0,97821.0,0.46270252]
[1733832191392,0.05121,97822.0,97821.0,0.46270252]
[1733832191601,0.05121,97822.0,97821.0,0.05718556]
[1733832192209,0.05121,97822.0,97821.0,0.41798556]
[1733832192504,0.051088,97827.0,97826.0,0.051088]
[1733832192807,0.051085,97832.0,97831.0,0.051085]
[1733832193219,0.051085,97832.0,97831.0,0.051145]
[1733832194602,0.052085,97832.0,97831.0,0.051145]
[1733832195113,0.12230787,97842.0,97831.0,0.051145]
[1733832195114,0.09171619,97837.0,97833.0,0.051084]
[1733832195408,0.09171619,97840.0,97836.0,6e-05]
[1733832195713,0.081371,97859.0,97834.0,0.07651126]
[1733832195714,0.09171619,97842.0,97841.0,0.05108]
[1733832195913,0.09171619,97842.0,97839.0,0.36086]
[1733832195914,0.09171619,97843.0,97842.0,0.081579]
[1733832196209,0.09171161,97843.0,97842.0,0.12634634]
[1733832196418,0.00012,97844.0,97843.0,0.051079]
[1733832196805,0.051198,97844.0,97843.0,0.051139]
[1733832197809,0.00012,97844.0,97843.0,0.051139]
[1733832198117,0.00412,97844.0,97843.0,0.09584437]
[1733832199413,0.02495474,97844.0,97843.0,0.051139]
[1733832200008,0.09170657,97851.0,97843.0,0.051139]
[1733832200209,0.002,97844.0,97843.0,0.051139]
[1733832200406,0.02002326,97852.0,97851.0,0.051075]
[1733832200817,0.09170657,97857.0,97856.0,0.051072]
[1733832201010,0.09182442,97860.0,97858.0,0.051071]
[1733832201209,0.09182442,97860.0,97852.0,0.0318]
[1733832201210,0.00011785,97860.0,97859.0,0.05107]
[1733832201413,0.00011785,97860.0,97859.0,0.05113]
[1733832201615,0.00011785,97860.0,97859.0,0.41193]
[1733832201919,0.00011785,97860.0,97859.0,0.45662676]
[1733832202512,0.00511785,97860.0,97859.0,0.45662676]
[1733832203423,0.00511785,97860.0,97859.0,0.41193]
[1733832203713,0.00511785,97860.0,97859.0,6e-05]
[1733832203714,0.06418785,97860.0,97859.0,6e-05]
[1733832204306,0.06418785,97860.0,97859.0,0.00106]
[1733832207119,0.05108,97840.0,97839.0,0.3921]
[1733832207511,0.0512,97840.0,97839.0,0.0313]
[1733832208414,0.0522,97840.0,97839.0,0.0313]
[1733832209415,0.0542,97840.0,97839.0,0.0313]
[1733832210225,0.0542,97840.0,97839.0,0.0323]
[1733832210226,0.0522,97840.0,97839.0,0.0323]
[1733832211124,0.0512,97840.0,97839.0,0.0323]
[1733832211313,0.0512,97840.0,97839.0,0.001]
[1733832212818,0.051083,97834.0,97833.0,0.066]
[1733832213214,0.051203,97834.0,97833.0,0.066]
[1733832213513,0.051203,97834.0,97833.0,0.11070997]
[1733832213716,0.051203,97834.0,97833.0,0.07761051]
[1733832213915,0.051203,97834.0,97823.0,0.051089]
[1733832213916,0.051089,97824.0,97823.0,0.051089]
[1733832214116,0.051089,97824.0,97823.0,0.09580143]
[1733832214416,0.051209,97824.0,97823.0,0.09580143]
[1733832214817,0.051209,97824.0,97823.0,0.45660143]
[1733832215824,0.052209,97824.0,97823.0,0.46560143]
[1733832217030,0.052209,97824.0,97823.0,0.05371243]
[1733832217316,0.052209,97824.0,97823.0,0.0537153]
[1733832221613,0.413009,97824.0,97823.0,0.05371681]
[1733832222030,0.413009,97824.0,97823.0,0.009]
[1733832225025,0.43299477,97824.0,97823.0,0.009]
[1733832226824,0.52470134,97824.0,97823.0,0.009]
[1733832227128,0.43299477,97824.0,97823.0,0.009]
[1733832227520,0.52455432,97824.0,97823.0,0.009]
[1733832228025,0.43299477,97824.0,97823.0,0.009]
[1733832228823,0.051095,97812.0,97811.0,0.0315]
[1733832229233,0.051215,97812.0,97811.0,0.0315]
[1733832229926,0.051215,97812.0,97811.0,0.009]
[1733832230122,0.052215,97812.0,97811.0,0.009]
[1733832230523,0.052215,97812.0,97794.0,0.0331]
[1733832230524,0.051104,97795.0,97794.0,0.0331]
[1733832231028,0.051224,97795.0,97794.0,0.0331]
[1733832231426,0.05130354,97795.0,97794.0,0.0331]
[1733832231822,0.05230354,97795.0,97794.0,0.0401]
[1733832232530,0.05330354,97795.0,97794.0,0.0401]
[1733832241141,0.05330354,97795.0,97794.0,0.007]
[1733832241837,0.07360514,97795.0,97794.0,0.007]
[1733832242042,0.07360514,97795.0,97771.0,0.24284419]
[1733832242043,0.41401309,97795.0,97771.0,0.24284419]
[1733832242342,0.051119,97766.0,97762.0,0.24317469]
[1733832242636,0.00012,97766.0,97761.0,0.0302]
[1733832242840,0.3608,97762.0,97761.0,0.0302]
[1733832243030,0.412041,97762.0,97761.0,0.0302]
[1733832243435,0.36092,97762.0,97761.0,0.0302]
[1733832243735,0.051119,97767.0,97766.0,0.051118]
[1733832243938,0.3608,97772.0,97761.0,0.391]
[1733832244127,0.0318,97777.0,97761.0,0.391]
[1733832244128,0.051113,97777.0,97770.0,0.3608]
[1733832244334,0.01044735,97781.0,97770.0,0.3608]
[1733832244537,0.051111,97782.0,97780.0,0.051112]
[1733832244732,0.051111,97781.0,97780.0,0.051172]
[1733832244936,0.051111,97781.0,97780.0,6e-05]
[1733832246236,0.411911,97781.0,97780.0,6e-05]
[1733832246637,0.051121,97762.0,97761.0,0.005]
[1733832246841,0.051121,97762.0,97761.0,0.04974358]
[1733832247344,0.051121,97762.0,97761.0,0.005]
[1733832247535,0.051121,97762.0,97760.0,0.051122]
[1733832247736,0.10027921,97780.0,97759.0,0.3608]
[1733832247941,0.00012,97761.0,97760.0,0.09586631]
[1733832248529,0.00012,97761.0,97760.0,0.051122]
[1733832249437,0.00012,97761.0,97760.0,0.056122]
[1733832250039,0.051242,97761.0,97760.0,0.005]
[1733832250242,0.052242,97761.0,97760.0,0.005]
[1733832250742,0.052242,97761.0,97760.0,0.04974298]
[1733832250939,0.052242,97761.0,97760.0,0.005]
[1733832251334,0.06269479,97761.0,97760.0,0.005]
[1733832251538,0.051124,97756.0,97755.0,6.289e-05]
[1733832251736,0.411924,97756.0,97755.0,6.289e-05]
[1733832251931,0.412044,97756.0,97754.0,0.00061]
[1733832252334,0.00012,97755.0,97754.0,1e-08]
[1733832252541,0.051136,97734.0,97728.0,0.051139]
[1733832252740,0.051136,97734.0,97729.0,0.04475513]
[1733832253041,0.051136,97734.0,97730.0,0.04475513]
[1733832253343,0.051136,97734.0,97731.0,0.04475513]
[1733832253541,0.051137,97733.0,97732.0,0.04475513]
[1733832254046,0.051138,97731.0,97729.0,0.0308]
[1733832254235,0.051138,97731.0,97730.0,0.04475792]
[1733832254435,0.051138,97731.0,97729.0,0.0308]
[1733832254841,0.00012,97730.0,97729.0,0.0308]
[1733832256733,0.00112,97730.0,97729.0,0.0308]
[1733832257241,0.00212,97730.0,97729.0,0.0348]
[1733832259033,0.00212,97730.0,97729.0,0.004]
[1733832259245,0.00219293,97730.0,97729.0,0.004]
[1733832260444,0.05333093,97730.0,97729.0,0.004]
[1733832261039,0.05233093,97730.0,97729.0,0.004]
[1733832263140,0.00119293,97730.0,97729.0,0.004]
[1733832263337,0.00119293,97730.0,97729.0,0.055138]
[1733832263740,0.00119293,97730.0,97729.0,0.09989313]
[1733832264141,0.00119293,97730.0,97729.0,0.055138]
[1733832264349,0.00119293,97730.0,97729.0,0.09989313]
[1733832264537,0.10027921,97750.0,97729.0,0.055138]
[1733832264742,0.07156369,97748.0,97747.0,0.051128]
[1733832265443,0.07156369,97748.0,97747.0,0.05123388]
[1733832266246,0.07156369,97748.0,97747.0,0.00010588]
[1733832266757,0.43236369,97748.0,97747.0,0.00010588]
[1733832266947,0.49766369,97748.0,97747.0,0.00010588]
[1733832269747,0.43236369,97748.0,97747.0,0.00010588]
[1733832270252,0.07156369,97748.0,97747.0,0.00010588]
[1733832271048,0.43236369,97748.0,97747.0,0.00010588]
[1733832278257,0.55467156,97748.0,97747.0,0.00010588]
[1733832278451,0.43236369,97748.0,97747.0,0.00010588]
[1733832278654,0.55474293,97748.0,97747.0,0.00010588]
[1733832279055,0.55474367,97748.0,97747.0,0.00010588]
[1733832279251,0.43236369,97748.0,97747.0,0.00010588]
[1733832289656,0.43236369,97748.0,97747.0,0.04486138]
[1733832292368,0.58517319,97748.0,97747.0,0.04486138]
[1733832292861,0.58517319,97748.0,97731.0,0.30428044]
[1733832292862,0.43095994,97748.0,97740.0,0.18259067]
[1733832293065,0.051132,97742.0,97734.0,0.18259067]
[1733832293263,0.051136,97733.0,97732.0,0.18336109]
[1733832293567,0.17389748,97733.0,97732.0,0.22812108]
[1733832293764,0.051256,97733.0,97732.0,0.04475999]
[1733832294266,0.20453342,97733.0,97732.0,0.04475999]
[1733832295166,0.20453342,97733.0,97724.0,0.18336109]
[1733832295467,0.051141,97724.0,97723.0,0.18336109]
[1733832295657,0.14307453,97724.0,97723.0,0.18336109]
[1733832295861,0.14319453,97724.0,97723.0,0.18336109]
[1733832296767,0.09205353,97724.0,97723.0,0.18336109]
[1733832296960,0.00012,97724.0,97723.0,0.051142]
[1733832297363,0.051261,97724.0,97723.0,0.051142]
[1733832297667,0.052261,97724.0,97723.0,0.055142]
[1733832298675,0.053261,97724.0,97723.0,0.056142]
[1733832300062,0.053261,97724.0,97723.0,0.005]
[1733832300260,0.053261,97724.0,97723.0,0.29405197]
[1733832300462,0.053261,97724.0,97723.0,0.04976163]
[1733832302771,0.053261,97724.0,97723.0,0.10090363]
[1733832302772,0.00212,97724.0,97723.0,0.10090363]
[1733832303072,0.00212,97724.0,97723.0,0.34519397]
[1733832303575,0.053261,97724.0,97723.0,0.34519397]
[1733832304367,0.053261,97724.0,97723.0,0.10090363]
[1733832304368,0.00212,97724.0,97723.0,0.10090363]
[1733832304567,0.05114,97727.0,97726.0,0.05114]
[1733832304762,0.05114,97727.0,97726.0,0.45670163]
[1733832305167,0.05114,97727.0,97726.0,0.41194]
[1733832305567,0.05114,97727.0,97726.0,0.412]
[1733832305769,0.05314,97727.0,97726.0,0.417]
[1733832306577,0.05314,97727.0,97726.0,0.00506]
[1733832306969,0.05314,97727.0,97726.0,0.24930972]
[1733832307166,0.002,97727.0,97726.0,0.417]
[1733832307373,0.002,97727.0,97726.0,0.46175978]
[1733832308271,0.053139,97727.0,97726.0,0.417]
[1733832309482,0.053139,97727.0,97726.0,0.41061786]
[1733832310174,0.053139,97727.0,97726.0,0.29411843]
[1733832310478,0.053139,97727.0,97726.0,0.04981786]
[1733832312081,0.002,97727.0,97726.0,0.41061786]
[1733832312377,0.002,97727.0,97726.0,0.46175786]
[1733832312768,0.053139,97727.0,97726.0,0.46175786]
[1733832313682,0.002,97727.0,97726.0,0.46175786]
[1733832313866,0.002,97727.0,97726.0,1.03509761]
[1733832314174,0.002,97727.0,97726.0,0.68600213]
[1733832314573,0.00012,97733.0,97726.0,0.68600213]
[1733832314873,0.00012,97733.0,97732.0,0.051197]
[1733832315068,0.00012,97733.0,97732.0,0.32019913]
[1733832316671,0.00112,97733.0,97732.0,0.32019913]
[1733832316865,0.00212,97733.0,97732.0,0.32019913]
[1733832317470,0.00012,97733.0,97732.0,0.32019913]
[1733832317671,0.00012,97733.0,97732.0,0.32719913]
[1733832317672,0.00112,97733.0,97732.0,0.32719913]
[1733832318176,0.05125996,97749.0,97748.0,0.051128]
[1733832318369,0.05125996,97749.0,97748.0,0.411928]
[1733832318678,0.05125996,97749.0,97748.0,0.411988]
[1733832318978,0.07157581,97749.0,97748.0,0.411988]
[1733832319675,0.07157581,97749.0,97748.0,0.65585995]
[1733832320091,0.07157581,97749.0,97748.0,0.414988]
[1733832320380,0.07157581,97749.0,97748.0,0.70360735]
[1733832320572,0.00013196,97749.0,97748.0,0.4597354]
[1733832320775,0.00013196,97749.0,97748.0,0.5224354]
[1733832322179,0.00013196,97749.0,97748.0,0.76604443]
[1733832323077,0.00013196,97749.0,97748.0,0.4917354]
[1733832323277,0.00013196,97749.0,97748.0,0.4597354]
[1733832323582,0.05125996,97749.0,97748.0,0.4597354]
[1733832324178,0.00013196,97749.0,97748.0,0.4597354]
[1733832324780,0.00013196,97749.0,97748.0,0.70334443]
[1733832325177,0.00013196,97749.0,97748.0,0.4597354]
[1733832325684,0.00013196,97749.0,97748.0,0.4923354]
[1733832325983,0.00013196,97749.0,97748.0,0.73594443]
[1733832326184,0.0634,97769.0,97768.0,0.051118]
[1733832326385,0.083017,97769.0,97768.0,0.0958654]
[1733832326579,0.051115,97775.0,97774.0,0.051115]
[1733832326783,0.051115,97775.0,97774.0,0.0958624]
[1733832326980,0.02077387,97775.0,97774.0,0.0959224]
[1733832327182,0.02077387,97775.0,97774.0,0.411975]
[1733832327382,8.393e-05,97778.0,97777.0,0.051113]
[1733832327691,8.393e-05,97778.0,97777.0,0.09584595]
[1733832328085,8.393e-05,97778.0,97777.0,0.45664595]
[1733832328388,8.393e-05,97778.0,97777.0,0.45670595]
[1733832329388,0.05119693,97778.0,97777.0,0.45670595]
[1733832330085,0.00708393,97778.0,97777.0,0.45670595]
[1733832330394,0.06219693,97778.0,97777.0,0.36086]
[1733832333884,0.06219693,97778.0,97777.0,0.411973]
[1733832336382,0.01108393,97778.0,97777.0,0.411973]
[1733832337081,0.06219693,97778.0,97777.0,0.411973]
[1733832337486,0.01108393,97778.0,97777.0,0.411973]
[1733832337991,0.01108393,97778.0,97777.0,0.45670671]
[1733832340489,0.01108393,97778.0,97777.0,0.6388363]
[1733832340689,0.01108393,97778.0,97777.0,0.45670671]
[1733832344702,0.01108393,97778.0,97777.0,0.48770671]
[1733832346099,0.01108393,97778.0,97777.0,0.37039842]
[1733832346296,0.01108393,97778.0,97777.0,1.09199842]
[1733832346685,0.0303,97798.0,97797.0,0.051103]
[1733832346886,0.081402,97798.0,97797.0,0.051103]
[1733832347094,0.081402,97798.0,97797.0,0.051163]
[1733832347301,0.10196783,97798.0,97797.0,0.051163]
[1733832348895,0.11096783,97798.0,97797.0,0.052163]
[1733832349400,0.11896783,97798.0,97797.0,0.053163]
[1733832349894,0.11896783,97798.0,97797.0,0.052163]
[1733832349895,0.05886583,97798.0,97797.0,0.052163]
[1733832350105,0.05886583,97798.0,97797.0,0.053163]
[1733832350106,0.06586583,97798.0,97797.0,0.053163]
[1733832350297,0.06586583,97798.0,97797.0,0.09789045]
[1733832350298,0.03556583,97798.0,97797.0,0.09789045]
[1733832351496,0.03556583,97798.0,97797.0,0.10799721]
[1733832352588,0.015,97798.0,97797.0,0.10799721]
[1733832353695,0.015,97798.0,97797.0,0.29023401]
[1733832354097,0.015,97798.0,97797.0,0.10799721]
[1733832368301,0.015,97798.0,97797.0,0.41297349]
[1733832369105,0.015,97798.0,97797.0,0.68134243]
[1733832369312,0.009,97798.0,97797.0,0.68034243]
[1733832369515,0.013,97798.0,97797.0,0.41197349]
[1733832370107,0.013,97798.0,97797.0,0.68060055]
[1733832371608,0.013,97798.0,97797.0,0.37562427]
[1733832372114,0.15583353,97811.0,97800.0,0.051099]
[1733832372115,0.051102,97801.0,97800.0,0.051099]
[1733832372414,0.051102,97801.0,97800.0,0.09588645]
[1733832373215,0.056102,97801.0,97800.0,0.09588645]
[1733832373600,0.063102,97801.0,97800.0,0.09688645]
[1733832374508,0.012,97801.0,97800.0,0.09688645]
[1733832374815,0.012,97801.0,97800.0,0.66973767]
[1733832375109,0.012,97801.0,97800.0,0.36516961]
[1733832382112,0.0639,97811.0,97800.0,0.36516961]
[1733832382424,0.0639,97811.0,97810.0,0.051156]
[1733832382622,0.0639,97811.0,97810.0,0.09588345]
[1733832383714,0.0639,97811.0,97810.0,0.09688345]
[1733832383715,0.0699,97811.0,97810.0,0.09688345]
[1733832384520,0.0729,97811.0,97810.0,0.09688345]
[1733832385513,0.0749,97811.0,97810.0,0.09688345]
[1733832391513,0.0749,97811.0,97810.0,0.45768345]